Cogmind - Beta 14 @@@ ROGUE MODE // 2024.11.13 @ 15:50:19 Player: WazdakkaGutsmek Result: Destroyed by Y-54 Guardian with Gatling Laser Performance ------------- Evolutions (3) 1500 Regions Visited (13) 2600 Robots Destroyed (122) 610 Value Destroyed (5369) 5369 Prototype IDs (42) 840 Alien Tech Used (0) 0 Bonus (4245) 4245 TOTAL SCORE: 15164 Bonus ------- High Alert Combat Kills 1132 Follower Combat Kills 789 Entered Garrisons 600 Used RIF Installer 1500 Aligned with FarCom 300 Friendly Fire -76 Cogmind --------- Core Integrity 0/700 Matter 102/300 Energy 100/100 System Corruption 11% Temperature Cool (12) Movement Rolling (170) Ox4 Location -7/Factory Parts ------- > --- POWER (1) -------- (None) > --- PROPULSION (3) --- Advanced Medium Treads Centrium Wheel Centrium Wheel > --- UTILITY (7) ------ Cargo Storage Unit Graphene Brace Relay Coupler [NC] (22) > --- WEAPON (2) ------- Enhanced Coil Gun Enhanced Coil Gun > --- INVENTORY (30) --- Small Storage Unit Relay Coupler [NC] (23) Relay Coupler [NC] (22) Relay Coupler [NC] (22) Relay Coupler [Grunt] (29) Lightning Gun HERF Cannon YOLO Cannon Hardcell Cannon Proton Missile Launcher Heavy Proton Missile Launcher Remote Datajack Improved Remote Datajack Peak State ------------ > --- POWER ------------ Reinforced Deuterium Engine > --- PROPULSION ------- Medium Treads Centrium Wheel Centrium Wheel > --- UTILITY ---------- Improved Heat Sink Cargo Storage Unit Improved Light Armor Plating Medium Reflective Plating Graphene Brace Relay Coupler [NC] > --- WEAPON ----------- Heavy Mass Driver > --- INVENTORY -------- Advanced Medium Treads Small Storage Unit Relay Coupler [NC] Relay Coupler [NC] Relay Coupler [NC] Relay Coupler [Grunt] Lightning Gun HERF Cannon YOLO Cannon Hardcell Cannon Proton Missile Launcher Improved Remote Datajack [Rating: 60] Favorites ----------- Power Reinforced Ion Engine Engine Reinforced Ion Engine Power Core Light Nuclear Core Propulsion Light Treads Treads Light Treads Leg Aluminum Leg Wheel Centrium Wheel Hover Unit Backup Propulsion III Utility Improved Heat Sink Device Improved Heat Sink Storage Large Storage Unit Hackware Relay Coupler [NC] Protection Light Armor Plating Weapon Enhanced Autogun Energy Gun Pulse Rifle Energy Cannon YOLO Cannon Ballistic Gun Enhanced Autogun Ballistic Cannon Heavy Mass Driver Launcher Grenade Launcher Special Melee Weapon Datajack Build | -11 -10 -10 -10 -9 -8 -8 -8 -8 -7 -7 -7 -7 -7 ------- Run | Yrd Mat Min Exi Min Mat Gar Mat Gar Fac Was Fac Gar Fac Slots Evolved 6 | . . . . . 4 . . . 2 . . . . Power . | . . . . . . . . . . . . . . Propulsion 1 | . . . . . . . . . 1 . . . . Utility 5 | . . . . . 4 . . . 1 . . . . Weapon . | . . . . . . . . . . . . . . Parts Attached 91 | . 4 4 1 2 10 5 11 14 4 4 1 18 13 Power 8 | . . 1 . . 2 . . 2 . . . 3 . Engine 7 | . . 1 . . 1 . . 2 . . . 3 . Core 1 | . . . . . 1 . . . . . . . . Reactor . | . . . . . . . . . . . . . . Propulsion 25 | . . 2 . . 2 1 5 2 1 1 . 6 5 Treads 19 | . . 2 . . 2 1 5 2 1 . . 4 2 Leg 1 | . . . . . . . . . . . . 1 . Wheel 3 | . . . . . . . . . . . . . 3 Hover 2 | . . . . . . . . . . 1 . 1 . Flight . | . . . . . . . . . . . . . . Utility 26 | . 1 . . 1 1 4 4 4 1 1 1 6 2 Device 6 | . . . . 1 . 1 1 . . . . 3 . Storage 5 | . 1 . . . 1 . . . 1 . 1 . 1 Processor . | . . . . . . . . . . . . . . Hackware 2 | . . . . . . . . 1 . . . . 1 Protection 13 | . . . . . . 3 3 3 . 1 . 3 . Artifact . | . . . . . . . . . . . . . . Weapon 32 | . 3 1 1 1 5 . 2 6 2 2 . 3 6 Energy Gun 3 | . . . . 1 . . 1 . . . . 1 . Energy Cannon 2 | . . . . . . . . 1 . . . . 1 Ballistic Gun 11 | . 1 . . . 3 . . 4 . 1 . . 2 Ballistic Cannon 7 | . . . . . . . 1 . 2 1 . 2 1 Launcher 7 | . 2 1 . . 2 . . . . . . . 2 Special Weapon . | . . . . . . . . . . . . . . Impact Weapon . | . . . . . . . . . . . . . . Slashing Weapon . | . . . . . . . . . . . . . . Piercing Weapon . | . . . . . . . . . . . . . . Special Melee Weapon 2 | . . . 1 . . . . 1 . . . . . Unidentified Prototypes 5 | . . . . . 1 . . . . 1 . . 3 Corrupted Parts 2 | . . . . . . . . . . . . . 2 System Corruption 7 | . . . . . . . . . . . . . 7 Parts Lost 29 | . . 4 . . 4 . 3 5 . 3 . 2 8 Power 4 | . . 1 . . 1 . . 1 . . . . 1 Propulsion 11 | . . 2 . . 2 . . 2 . 2 . 1 2 Utility 8 | . . . . . . . 1 1 . 1 . 1 4 Weapon 6 | . . 1 . . 1 . 2 1 . . . . 1 Highest Loss Streak 6 | . . 4 . . 4 . 2 1 . 3 . 1 6 To Critical Strikes 1 | . . . . . . . . . . 1 . . . Average Slot Usage (%) 87 | . 85 83 85 100 59 94 97 96 92 45 57 84 81 Engine 8 | . 14 13 14 14 4 9 9 8 7 4 7 7 7 Treads 17 | . . 24 28 28 16 18 18 17 23 5 . 16 15 Leg 1 | . 28 3 . . . . . . . . . . . Hover 1 | . . . . . . . . . . 6 15 4 . Device 12 | . . . . 14 9 18 18 18 15 3 . 11 14 Storage 8 | . 14 14 14 14 9 9 9 9 7 1 3 7 7 Protection 18 | . . . . . . 21 24 25 23 12 15 26 21 Energy Gun 2 | . 10 . . 14 2 . 6 2 . 7 15 1 . Ballistic Gun 7 | . 13 14 14 14 15 18 5 11 . . . . . Ballistic Cannon 3 | . . . . . . . 6 1 14 2 . 6 6 Peak Build Rating 60 | 6 7 7 9 12 22 28 36 51 43 45 25 55 60 Average Rating 32 | 6 6 6 7 11 17 26 29 38 41 21 24 47 54 On Entrance 22 | 6 6 6 6 9 12 20 28 36 37 42 24 25 55 Naked Turns 59 | . . . . . . . . . . 59 . . . Heaviest Build 195 | 14 20 20 18 20 37 47 49 58 76 76 20 67 195 Greatest Support 78 | 20 20 40 40 40 40 40 44 44 64 64 16 70 78 Greatest Overweight (x) 5 | . . . . . . 1 1 1 1 2 1 3 5 Average Overweight (x) . | . . . . . . 1 1 . . . . . 1 Largest Inventory Capacity 30 | 8 10 10 10 10 15 15 15 15 20 20 8 8 30 Average Capacity 12 | 8 8 10 10 10 12 15 15 15 18 8 7 8 16 Most Carried 17 | 6 8 9 8 8 12 15 15 15 15 15 5 8 17 Average Carried 10 | 6 7 5 6 7 8 13 14 13 13 7 5 7 9 Final Capacity 30 | 8 10 10 10 10 15 15 15 15 20 5 8 8 30 Final Carried 15 | 6 8 5 8 7 12 15 15 14 14 5 5 8 14 Class Distribution -------------------- 42% | Scavenger-Mutant 41% | Mutant 15% | Bothacker-Mutant Dominant Class ---------------- Mutant | -10/Materials Mutant | -10/Mines Mutant | -10/Exiles Mutant | -9/Mines Mutant | -8/Materials Scavenger-Mutant | -8/Garrison Scavenger-Mutant | -8/Materials Mutant | -8/Garrison Mutant | -7/Factory Mutant | -7/Waste Mutant | -7/Factory Scavenger-Mutant | -7/Garrison Scavenger-Mutant | -7/Factory Resources | -11 -10 -10 -10 -9 -8 -8 -8 -8 -7 -7 -7 -7 -7 ----------- Run | Yrd Mat Min Exi Min Mat Gar Mat Gar Fac Was Fac Gar Fac Matter Collected 3446 | 200 45 205 . . 413 362 393 447 126 176 . 933 146 Remotely . | . . . . . . . . . . . . . . Salvage Created 3968 | . 327 133 . . 501 118 602 902 220 . . 676 489 Parts 233 | . 39 9 . . 35 4 41 47 9 . . 31 18 Haulers Intercepted 3 | . 1 . . . 1 . 1 . . . . . . Recyclers Shooed 2 | . . . . . . . 1 . . . . . 1 Parts Field Recycled . | . . . . . . . . . . . . . . Retrieved Matter . | . . . . . . . . . . . . . . Parts Self-Destructed . | . . . . . . . . . . . . . . Prevented . | . . . . . . . . . . . . . . Kills | -11 -10 -10 -10 -9 -8 -8 -8 -8 -7 -7 -7 -7 -7 ------- Run | Yrd Mat Min Exi Min Mat Gar Mat Gar Fac Was Fac Gar Fac Combat Hostiles Destroyed 122 | . 14 18 . . 11 2 15 26 6 . . 19 11 Guns 39 | . 5 4 . . 9 2 8 10 . . . 1 . Cannons 41 | . . . . . . . 7 5 6 . . 18 5 AOE 39 | . 9 14 . . 2 . . 9 . . . . 5 Classes Destroyed 20 | . 7 2 . . 3 . 2 2 . . . 4 . Worker 4 | . 2 2 . . . . . . . . . . . Builder 1 | . 1 . . . . . . . . . . . . Tunneler 1 | . . 1 . . . . . . . . . . . Hauler 3 | . 1 . . . 1 . 1 . . . . . . Recycler 2 | . . . . . . . 1 . . . . . 1 Operator 2 | . 1 . . . . . 1 . . . . . . Watcher 2 | . 1 . . . . . 1 . . . . . . Swarmer 26 | . 9 . . . . . 6 7 . . . 3 1 Grunt 34 | . 5 2 . . 5 . 3 9 3 . . 5 2 Brawler 6 | . . . . . 1 1 . 2 . . . 2 . Duelist 4 | . . . . . 1 . . 2 . . . 1 . Protector 1 | . . . . . . . . . . . . 1 . Sentry 18 | . . . . . 4 1 4 4 2 . . 3 . Demolisher 1 | . . . . . . . . . . . . 1 . Specialist 4 | . . . . . . . 2 . . . . . 2 Hunter 6 | . . . . . . . . 1 . . . 1 4 Programmer 5 | . . . . . . . . 1 1 . . 1 2 Behemoth 1 | . . . . . . . . . . . . 1 . Assembled 16 | . . 16 . . . . . . . . . . . Surgeon 1 | . . . . . . . . . . . . 1 . Best Kill Streak 14 | . 8 14 . . 6 1 2 14 3 . . 4 8 Combat Bots Only 14 | . 6 14 . . 5 1 2 14 3 . . 4 8 Max Kills in Single Turn 4 | . 4 3 . . 2 1 2 3 1 . . 1 2 Gunslinging . | . . . . . . . . . . . . . . Exploded 3 | . 3 3 . . 1 . . 2 . . . . 1 Melee . | . . . . . . . . . . . . . . Uniques/NPCs Destroyed . | . . . . . . . . . . . . . . Combat | -11 -10 -10 -10 -9 -8 -8 -8 -8 -7 -7 -7 -7 -7 -------- Run | Yrd Mat Min Exi Min Mat Gar Mat Gar Fac Was Fac Gar Fac Hostile Shots Fired 854 | . 56 48 . . 76 22 81 116 48 2 . 125 280 Missed 296 | . 26 22 . . 24 8 32 26 15 . . 57 86 Damage Taken 7521 | . 285 561 . . 813 220 548 1166 332 110 . 1177 2309 Core 1234 | . 89 68 . . 194 17 32 129 38 6 . 115 546 Absorbed by Shields . | . . . . . . . . . . . . . . Redirected to Shielding 50 | . . . . . . . . 23 27 . . . . Ignored by Resistances 177 | . . . . . . . . 9 38 . . 70 60 Regen/Repaired (Parts) 70 | . . . . . . . . . . 15 . 55 . Core Remaining (%) 56 | 100 . . . 37 . . . 32 . . . . . Volleys Fired 350 | . 27 28 . . 41 16 54 63 18 . . 76 27 Largest 2 | . 2 2 . . 2 2 2 2 2 . . 2 2 Hottest 115 | . 70 50 . . 61 50 107 107 96 . . 115 100 Shots Fired 562 | . 49 40 . . 78 32 107 107 35 . . 86 28 Gun 340 | . 42 24 . . 72 32 72 77 . . . 18 3 Cannon 189 | . . . . . . . 35 30 35 . . 68 21 Launcher 33 | . 7 16 . . 6 . . . . . . . 4 Special . | . . . . . . . . . . . . . . Kinetic 411 | . 26 24 . . 63 32 73 69 35 . . 68 21 Thermal 93 | . . . . . . . 34 38 . . . 18 3 Explosive 29 | . 7 16 . . 6 . . . . . . . . Electromagnetic 29 | . 16 . . . 9 . . . . . . . 4 Robot Hit Streak 17 | . 4 6 . . 8 6 6 9 17 . . 8 6 Robot Miss Streak 5 | . 4 4 . . 4 3 4 5 5 . . 3 2 Penetration Max 1 | . . . . . . . . . . . . 1 . Secondary Targets 6 | . 1 . . . 3 1 . 1 . . . . . Max Gunslinging Chain 1 | . 1 . . . 1 1 . 1 . . . . . Shots Hit Robots 336 | . 20 20 5 . 50 15 63 64 23 . . 57 19 Core Hits 220 | . 26 48 . . 30 5 25 33 10 . . 26 17 Critical Kills 3 | . . . . . . . . 2 . . . . 1 Critical Parts Destroyed . | . . . . . . . . . . . . . . Critical Strikes 23 | . 1 . . . 1 . 1 5 2 . . 10 3 Burn 3 | . . . . . . . 1 2 . . . . . Meltdown 3 | . . . . . . . . 2 . . . . 1 Blast 15 | . . . . . . . . 1 2 . . 10 2 Corrupt 2 | . 1 . . . 1 . . . . . . . . Melee Attacks 8 | . . . 5 . . . . 3 . . . . . Impact . | . . . . . . . . . . . . . . Slashing . | . . . . . . . . . . . . . . Piercing . | . . . . . . . . . . . . . . Sneak Attacks 5 | . . . 5 . . . . . . . . . . Combat Hostiles . | . . . . . . . . . . . . . . Follow-up Attacks . | . . . . . . . . . . . . . . Damage Inflicted 13722 | . 986 1339 . . 1162 235 1284 2480 610 . . 3229 2397 Guns 3298 | . 287 136 . . 785 235 742 838 . . . 190 85 Cannons 6258 | . . . . . . . 527 878 610 . . 3039 1204 Explosions 4084 | . 699 1194 . . 377 . . 764 . . . . 1050 Melee . | . . . . . . . . . . . . . . Ramming 82 | . . 9 . . . . 15 . . . . . 58 Kinetic 7496 | . 186 136 . . 680 235 865 744 610 . . 3039 1001 Thermal 3281 | . 31 . . . 41 . 404 1736 . . . 190 879 Explosive 2198 | . 668 1194 . . 336 . . . . . . . . Electromagnetic 665 | . 101 . . . 105 . . . . . . . 459 Impact . | . . . . . . . . . . . . . . Slashing . | . . . . . . . . . . . . . . Piercing . | . . . . . . . . . . . . . . Highest Corruption 11 | . . . . . . . 1 3 . . . 1 11 Average Corruption 1 | . . . . . . . 1 2 . . . 1 1 Corruption Purged . | . . . . . . . . . . . . . . Corruption Blocked . | . . . . . . . . . . . . . . Effects 41 | . . . . . . . 6 22 . . . 5 8 Message Errors 6 | . . . . . . . 2 2 . . . . 2 Matter Fused 7 | . . . . . . . 1 5 . . . . 1 Heat Flow Errors 6 | . . . . . . . . 4 . . . 1 1 Energy Discharges 3 | . . . . . . . 1 1 . . . . 1 Parts Rejected 4 | . . . . . . . 1 2 . . . . 1 Parts Fused 1 | . . . . . . . . . . . . . 1 Data Loss (minor) 9 | . . . . . . . 1 5 . . . 2 1 Data Loss (major) 2 | . . . . . . . . 1 . . . 1 . Misfires 2 | . . . . . . . . 1 . . . 1 . Alerts 1 | . . . . . . . . 1 . . . . . Overload Shots . | . . . . . . . . . . . . . . Overflow Damage 672 | . . . . . 2 . 27 107 . . . 278 258 Projectiles 594 | . . . . . . . 27 104 . . . 278 185 Explosions 50 | . . . . . 2 . . 3 . . . . 45 Melee 28 | . . . . . . . . . . . . . 28 Knockbacks 33 | . . . . . . . 7 4 8 . . 12 2 Impact . | . . . . . . . . . . . . . . Kinetic 28 | . . . . . . . 7 3 6 . . 10 2 Secondary 5 | . . . . . . . . 1 2 . . 2 . Self-Inflicted Damage 423 | . 38 166 . . . . . 60 . . . . 159 Shots 15 | . 1 8 . . . . . 1 . . . . 5 Rammed 8 | . . 1 . . . . 6 . . . . . 1 Targets Rammed 8 | . . 1 . . . . 6 . . . . . 1 Kicked . | . . . . . . . . . . . . . . Crushed . | . . . . . . . . . . . . . . Highest Temperature 201 | . 12 5 . . 28 11 18 201 2 . . 138 142 Average Temperature 32 | . 9 3 . . 9 8 8 89 2 . . 27 40 Received Heat Transfer 1770 | . 18 9 . . 486 90 144 369 114 . . 207 333 Siege Activations . | . . . . . . . . . . . . . . Robots Corrupted . | . . . . . . . . . . . . . . Combat Hostiles . | . . . . . . . . . . . . . . Parts Fried . | . . . . . . . . . . . . . . Impact Corruptions 2 | . . . . . . . . . . . . 1 1 Robots Melted 3 | . . . . . . . . 2 . . . . 1 Combat Hostiles 3 | . . . . . . . . 2 . . . . 1 Parts Melted 7 | . . . . . . . 1 3 . . . . 3 Heat Transferred 4203 | . 50 . . . 50 . 962 1903 . . . 277 961 Parts Sabotaged . | . . . . . . . . . . . . . . Parts Stolen . | . . . . . . . . . . . . . . Parts Stripped . | . . . . . . . . . . . . . . Power Chain Reactions 2 | . 1 . . . 1 . . . . . . . . Alert | -11 -10 -10 -10 -9 -8 -8 -8 -8 -7 -7 -7 -7 -7 ------- Run | Yrd Mat Min Exi Min Mat Gar Mat Gar Fac Was Fac Gar Fac Peak Influence 1330 | . 548 261 . . 331 455 396 1330 835 241 131 1145 944 Initial 697 | . . 150 . . . 85 221 257 697 233 131 91 600 Average 519 | . 255 240 . . 122 261 306 906 731 208 131 643 692 Maximum Alert Level 4 | . 2 1 . . 1 2 1 4 3 1 . 4 3 Low Security (%) 12 | 100 21 2 . 100 94 20 2 . . 43 100 2 . Level 1 37 | . 64 97 . . 5 68 97 18 . 56 . 10 . Level 2 21 | . 13 . . . . 10 . 14 52 . . 48 48 Level 3 16 | . . . . . . . . 18 47 . . 30 51 Level 4 11 | . . . . . . . . 48 . . . 8 . Level 5 . | . . . . . . . . . . . . . . High Security . | . . . . . . . . . . . . . . Max Security . | . . . . . . . . . . . . . . Squads Dispatched 15 | . 2 . . . 5 . 3 . 1 . . . 4 Investigation 2 | . 1 . . . . . . . . . . . 1 Extermination . | . . . . . . . . . . . . . . Reinforcement 7 | . 1 . . . 1 . 3 . . . . . 2 Assault 2 | . . . . . . . . . 1 . . . 1 Garrison 4 | . . . . . 4 . . . . . . . . Intercept . | . . . . . . . . . . . . . . Searches Triggered . | . . . . . . . . . . . . . . Construction Impeded 1 | . . . . . . . . . . . . . 1 Haulers Reinforced 1 | . . . . . . . . . . . . . 1 Active Scanning Responses . | . . . . . . . . . . . . . . Cargo Convoy Interrupts 1 | . . . . . . . . . . . . . 1 Stealth | -11 -10 -10 -10 -9 -8 -8 -8 -8 -7 -7 -7 -7 -7 --------- Run | Yrd Mat Min Exi Min Mat Gar Mat Gar Fac Was Fac Gar Fac Distress Signals 7 | . 1 . . . 2 1 2 1 . . . . . Communications Jammed . | . . . . . . . . . . . . . . Distress Signals . | . . . . . . . . . . . . . . Times Spotted 211 | . 22 20 . . 16 4 30 38 6 6 . 33 36 Peak Tracking Total 11 | . 7 11 . . 5 3 3 9 3 4 . 6 11 Tactical Retreats 21 | . 1 1 . . 1 . 1 7 . . . 8 2 Traps | -11 -10 -10 -10 -9 -8 -8 -8 -8 -7 -7 -7 -7 -7 ------- Run | Yrd Mat Min Exi Min Mat Gar Mat Gar Fac Was Fac Gar Fac Traps Triggered 31 | . 1 . . . . 11 1 6 1 . . 9 2 Indirectly . | . . . . . . . . . . . . . . Trap Hack Attempts . | . . . . . . . . . . . . . . Triggered . | . . . . . . . . . . . . . . Disarmed . | . . . . . . . . . . . . . . Reprogrammed . | . . . . . . . . . . . . . . Reused . | . . . . . . . . . . . . . . Traps Extracted . | . . . . . . . . . . . . . . Installed . | . . . . . . . . . . . . . . Triggered . | . . . . . . . . . . . . . . Machines | -11 -10 -10 -10 -9 -8 -8 -8 -8 -7 -7 -7 -7 -7 ---------- Run | Yrd Mat Min Exi Min Mat Gar Mat Gar Fac Was Fac Gar Fac Machines Disabled 14 | . 3 . . . 1 3 . 3 . . . 2 2 Max in Single Turn 2 | . 2 . . . 1 1 . 1 . . . 2 1 Garrison Access 1 | . . . . . . . . . 1 . . . . Garrison Relay 4 | . . . . . . 2 . 2 . . . . . Phase Generator 1 | . . . . . . . . . . . . 1 . Machines Repaired . | . . . . . . . . . . . . . . Machines Dismantled . | . . . . . . . . . . . . . . Machines Sabotaged . | . . . . . . . . . . . . . . Overloaded Fab Kills . | . . . . . . . . . . . . . . Hacking | -11 -10 -10 -10 -9 -8 -8 -8 -8 -7 -7 -7 -7 -7 --------- Run | Yrd Mat Min Exi Min Mat Gar Mat Gar Fac Was Fac Gar Fac Machines Accessed 17 | . 4 . 1 . 1 2 2 2 1 . 1 2 1 Terminals 12 | . 4 . . . . 2 1 2 . . . 2 1 Fabricators . | . . . . . . . . . . . . . . Repair Stations . | . . . . . . . . . . . . . . Recycling Units . | . . . . . . . . . . . . . . Scanalyzers . | . . . . . . . . . . . . . . Garrison Access 4 | . . . . . 1 . 1 . 1 . 1 . . Total Hacks 26 | . 7 . 1 . 1 4 3 3 1 . 1 4 1 Successful 8 | . 2 . 1 . 1 . 1 . 1 . 1 1 . Failed 18 | . 5 . . . . 4 2 3 . . . 3 1 Catastrophic 6 | . 2 . . . . 1 1 1 . . . . 1 Database Lockouts . | . . . . . . . . . . . . . . Manual 9 | . 4 . 2 . . . 2 . 1 . . . . Terminals 21 | . 7 . . . . 4 2 3 . . . 4 1 Fabricators . | . . . . . . . . . . . . . . Repair Stations . | . . . . . . . . . . . . . . Recycling Units . | . . . . . . . . . . . . . . Scanalyzers . | . . . . . . . . . . . . . . Garrison Access 4 | . . . . . 1 . 1 . 1 . 1 . . Terminal Hacks 4 | . 2 . 1 . . . . . . . . 1 . Robot Schematic 1 | . 1 . . . . . . . . . . . . Emergency Access Points 1 | . . . . . . . . . . . . 1 . Hauler Manifests 1 | . 1 . . . . . . . . . . . . Derelict Proto ID Bank 1 | . . . 1 . . . . . . . . . . Fabricator Hacks . | . . . . . . . . . . . . . . Repair Station Hacks . | . . . . . . . . . . . . . . Recycling Unit Hacks . | . . . . . . . . . . . . . . Scanalyzer . | . . . . . . . . . . . . . . Garrison Access Hacks 3 | . . . . . 1 . 1 . . . 1 . . Unlock Access 3 | . . . . . 1 . 1 . . . 1 . . Unauthorized Hacks 1 | . . . . . . . . . 1 . . . . Terminals . | . . . . . . . . . . . . . . Fabricators . | . . . . . . . . . . . . . . Repair Stations . | . . . . . . . . . . . . . . Recycling Units . | . . . . . . . . . . . . . . Scanalyzers . | . . . . . . . . . . . . . . Garrison Access 1 | . . . . . . . . . 1 . . . . Restock 1 | . . . . . . . . . 1 . . . . Data Cores Recovered . | . . . . . . . . . . . . . . Used . | . . . . . . . . . . . . . . Hacking Detections 10 | . 2 . . . . 2 1 2 . . . 2 1 Full Trace Events 1 | . . . . . . . . 1 . . . . . Feedback Events . | . . . . . . . . . . . . . . Feedback Blocked . | . . . . . . . . . . . . . . Robot Schematics Acquired 1 | . 1 . . . . . . . . . . . . Robots Built . | . . . . . . . . . . . . . . Authchips . | . . . . . . . . . . . . . . Time . | . . . . . . . . . . . . . . Total Robot Build Rating . | . . . . . . . . . . . . . . Part Schematics Acquired . | . . . . . . . . . . . . . . Parts Built . | . . . . . . . . . . . . . . Authchips . | . . . . . . . . . . . . . . Time . | . . . . . . . . . . . . . . Total Part Build Rating . | . . . . . . . . . . . . . . Parts Repaired . | . . . . . . . . . . . . . . Time . | . . . . . . . . . . . . . . Parts Recycled . | . . . . . . . . . . . . . . Recycled Matter . | . . . . . . . . . . . . . . Retrieved Matter . | . . . . . . . . . . . . . . Retrieved Components . | . . . . . . . . . . . . . . Parts Scanalyzed . | . . . . . . . . . . . . . . Part Schematics Acquired . | . . . . . . . . . . . . . . Parts Damaged . | . . . . . . . . . . . . . . Bothacking | -11 -10 -10 -10 -9 -8 -8 -8 -8 -7 -7 -7 -7 -7 ------------ Run | Yrd Mat Min Exi Min Mat Gar Mat Gar Fac Was Fac Gar Fac Used RIF Installer 3 | . . . . . . 1 . 1 . . . 1 . Zone Cloak 1 | . . . . . . . . . . . . 1 . Program Shield 1 | . . . . . . . . 1 . . . . . Robots Hacked 7 | . . . 5 . . . . 2 . . . . . Non-combat 3 | . . . 3 . . . . . . . . . . Combat 4 | . . . 2 . . . . 2 . . . . . Robot Hacks Applied 7 | . . . 5 . . . . 2 . . . . . parse_system 5 | . . . 5 . . . . . . . . . . disable_weapons 1 | . . . . . . . . 1 . . . . . formatsys_high 1 | . . . . . . . . 1 . . . . . Relay Couplers Released 31 | . . . . . . 8 . 14 3 . . 3 3 Machine Destruction 21 | . . . . . . 8 . 10 3 . . . . Programmers 10 | . . . . . . . . 4 . . . 3 3 Attached 2 | . . . . . . . . 1 . . . . 1 Fabnet Peak Effective % . | . . . . . . . . . . . . . . Robots Rewired . | . . . . . . . . . . . . . . Allies Hacked . | . . . . . . . . . . . . . . Hacks Repelled . | . . . . . . . . . . . . . . Allies | -11 -10 -10 -10 -9 -8 -8 -8 -8 -7 -7 -7 -7 -7 -------- Run | Yrd Mat Min Exi Min Mat Gar Mat Gar Fac Was Fac Gar Fac Total Allies 22 | . . . . . . . . 1 . 19 . 2 . Largest Group 19 | . . . . . . . . 1 . 19 11 11 2 Highest-Rated Group 465 | . . . . . . . . 15 . 465 314 314 157 Highest-Rated Ally 95 | . . . . . . . . 15 . 35 35 95 95 Total Orders . | . . . . . . . . . . . . . . Ally Attacks 309 | . . . . . . . . 2 . 199 . 74 34 Total Damage 8144 | . . . . . . . . 59 . 5433 . 1465 1187 Kills 38 | . . . . . . . . 1 . 11 . 14 12 Allies Corrupted . | . . . . . . . . . . . . . . Allies Melted . | . . . . . . . . . . . . . . Intel | -11 -10 -10 -10 -9 -8 -8 -8 -8 -7 -7 -7 -7 -7 ------- Run | Yrd Mat Min Exi Min Mat Gar Mat Gar Fac Was Fac Gar Fac Robot Analysis Total . | . . . . . . . . . . . . . . Derelict Logs Recovered . | . . . . . . . . . . . . . . Drone Launches . | . . . . . . . . . . . . . . Drone Recoveries . | . . . . . . . . . . . . . . Exploration | -11 -10 -10 -10 -9 -8 -8 -8 -8 -7 -7 -7 -7 -7 ------------- Run | Yrd Mat Min Exi Min Mat Gar Mat Gar Fac Was Fac Gar Fac Turns Passed 8003 | 2 432 404 424 61 440 870 1039 1480 443 236 27 1491 654 Spaces Moved 3642 | 2 282 211 259 37 179 325 342 627 159 197 25 720 277 Core 99 | . . . . . . . . . . 99 . . . Treads 2928 | . . 191 259 37 179 325 342 627 159 24 . 567 218 Legs 308 | 2 282 20 . . . . . . . . . 4 . Wheels 59 | . . . . . . . . . . . . . 59 Hover 248 | . . . . . . . . . . 74 25 149 . Flight . | . . . . . . . . . . . . . . Fastest Speed 50 | 120 120 120 160 160 160 240 225 145 153 50 66 65 155 Average Speed 177 | 120 120 156 160 160 160 240 228 194 200 77 99 165 197 Slowest Speed 330 | 120 120 160 160 160 160 240 240 225 233 305 136 330 315 Overloaded Moves . | . . . . . . . . . . . . . . Propulsion Burnouts . | . . . . . . . . . . . . . . Robots Hopped . | . . . . . . . . . . . . . . Cave-ins Triggered . | . . . . . . . . . . . . . . Exploration Rate (%) 38 | 1 57 53 65 10 10 50 35 69 7 78 1 81 15 Regions Visited 13 Branch Regions 3 Pre-discovered Areas . | . . . . . . . . . . . . . . Known Exits Taken 3 | . . . . . 1 . 1 . . . 1 . . Unknown Exits Taken 5 | 1 1 1 1 1 . . . . . . . . . Scrap Searched 1 | . . 1 . . . . . . . . . . . Spaces Dug 2 | . . . . . . . . 1 1 . . . . Terrain Destroyed 420 | . 55 113 . . 31 . 5 97 1 . . 97 21 Melee . | . . . . . . . . . . . . . . Projectile 44 | . . . . . 1 . 5 8 1 . . 22 7 AOE 376 | . 55 113 . . 30 . . 89 . . . 75 14 Terrain Rammed . | . . . . . . . . . . . . . . Walls Destroyed . | . . . . . . . . . . . . . . Machines Disabled . | . . . . . . . . . . . . . . Actions | -11 -10 -10 -10 -9 -8 -8 -8 -8 -7 -7 -7 -7 -7 --------- Run | Yrd Mat Min Exi Min Mat Gar Mat Gar Fac Was Fac Gar Fac Total 4608 | 1 326 245 266 38 273 400 503 761 250 278 26 901 340 Wait 331 | . 6 1 . . 29 20 77 28 66 75 . 26 3 Move 3633 | 1 281 210 258 36 179 324 342 626 159 196 25 719 277 Hop . | . . . . . . . . . . . . . . Pick Up 56 | . 4 1 2 . 9 10 4 7 1 1 . 6 11 Fast Attach 33 | . 1 . . . 4 2 2 3 1 3 1 9 7 Attach 28 | . . 4 . 1 1 2 2 10 1 . . 1 6 Detach 12 | . 1 . . . 1 . . 3 1 1 . 1 4 Swap 30 | . 3 . 1 1 5 1 7 1 2 1 . 8 . Drop 42 | . 3 . . . 4 5 9 4 1 1 . 11 4 Fire 350 | . 27 28 . . 41 16 54 63 18 . . 76 27 Melee 8 | . . . 5 . . . . 3 . . . . . Ram 1 | . . . . . . . . . . . . . 1 Kick . | . . . . . . . . . . . . . . Crush 7 | . . 1 . . . . 6 . . . . . . Escape Stasis 75 | . . . . . . 20 . 12 . . . 43 . Rewire 2 | . . . . . . . . 1 . . . 1 . Trap . | . . . . . . . . . . . . . . Miscellaneous . | . . . . . . . . . . . . . . Route ------- -11/Scrapyard -10/Materials (discovered 4 exits: [*Mat x3] / [*Min]) -10/Mines (discovered 2 exits: [*Mat] / *Exi) -10/Exiles -9/Mines -8/Materials -8/Garrison -8/Materials (discovered 3 exits: *Fac / [*Sto] / Gar) -8/Garrison (discovered 2 exits: *Fac x2) -7/Factory -7/Waste -7/Factory -7/Garrison (discovered 3 exits: *Fac x3) -7/Factory History --------- Turn | Location | Event 1 | -11/Scrapyard | Discovered new exit (range 1) 3 | -11/Scrapyard | Entered Materials 111 | -10/Materials | Discovered new exit (range 14) 178 | -10/Materials | Discovered new exit (range 13) 311 | -10/Materials | Build established: Mutant 320 | -10/Materials | Discovered new exit (range 15) 415 | -10/Materials | Discovered new exit (range 14) 435 | -10/Materials | Entered Mines 450 | -10/Mines | Assembled infested the area 490 | -10/Mines | Core integrity fell below 50% 529 | -10/Mines | Lost 4 parts (1p2n1w) 554 | -10/Mines | Destroyed 14 combat bots 631 | -10/Mines | Discovered new exit (range 9) 833 | -10/Mines | Deemed a non-threat by the Exiles lab entrance 833 | -10/Mines | Discovered new exit (range 5) 839 | -10/Mines | Entered Exiles 881 | -10/Exiles | Met 8R-AWN 913 | -10/Exiles | Met EX-HEX 969 | -10/Exiles | Met EX-BIN 991 | -10/Exiles | Aligned with FarCom system 993 | -10/Exiles | Given EX-Vault access code 1033 | -10/Exiles | Opened EX-Vault 1037 | -10/Exiles | Found YOLO Cannon 1043 | -10/Exiles | Found Gui. Plasma Cannon 1087 | -10/Exiles | Warned to stay clear of 0b10 Research branches 1134 | -10/Exiles | Met EX-DEC 1246 | -10/Exiles | Discovered new exit (range 12) 1263 | -10/Exiles | Stole two prototypes: Gui. Plasma Cannon, YOLO Cannon 1263 | -10/Exiles | Entered Mines 1308 | -9/Mines | Discovered new exit (range 8) 1324 | -9/Mines | Entered Materials 1324 | -8/Materials | Evolved 4 slots: Utility x4 1380 | -8/Materials | Garrison activated, responded to threat 1478 | -8/Materials | Lost 4 parts (1p2n1w) 1497 | -8/Materials | Garrison activated, responded to threat 1764 | -8/Materials | Identified exit to Garrison 1764 | -8/Materials | Entered Garrison 1865 | -8/Garrison | Installed Relay Interface Framework 1920 | -8/Garrison | Warlord forces raided the area 1926 | -8/Garrison | Garrison Relay disabled 1940 | -8/Garrison | Triggered checkpoint 1942 | -8/Garrison | Triggered checkpoint 2000 | -8/Garrison | Triggered checkpoint 2040 | -8/Garrison | Triggered checkpoint 2066 | -8/Garrison | Triggered checkpoint 2068 | -8/Garrison | Build established: Scavenger-Mutant 2266 | -8/Garrison | Triggered checkpoint 2338 | -8/Garrison | Triggered checkpoint 2426 | -8/Garrison | Garrison Relay disabled 2608 | -8/Garrison | Discovered new exit (range 9) 2634 | -8/Garrison | Entered Materials 3549 | -8/Materials | Discovered new exit (range 16) 3610 | -8/Materials | Build established: Bothacker-Mutant 3637 | -8/Materials | Discovered new exit (range 16) 3673 | -8/Materials | Identified exit to Garrison 3673 | -8/Materials | Entered Garrison 3749 | -8/Garrison | Triggered checkpoint 3832 | -8/Garrison | Garrison Relay disabled 4127 | -8/Garrison | Core integrity fell below 50% 4159 | -8/Garrison | Triggered checkpoint 4220 | -8/Garrison | Destroyed 14 combat bots 4295 | -8/Garrison | Discovered new exit (range 13) 4349 | -8/Garrison | Triggered checkpoint 4409 | -8/Garrison | Expanded RIF knowledge: Program Shield 4434 | -8/Garrison | Garrison Relay disabled 4449 | -8/Garrison | Triggered checkpoint 4538 | -8/Garrison | Discovered new exit (range 13) 4642 | -8/Garrison | Build established: Mutant 4735 | -8/Garrison | Triggered checkpoint 5153 | -8/Garrison | Entered Factory 5153 | -7/Factory | Evolved 2 slots: Propulsion x1, Utility x1 5155 | -7/Factory | FarCom data flow suspended 5596 | -7/Factory | Sucked down chute 5596 | -7/Factory | Entered Waste 5623 | -7/Waste | Spotted C-40 Crusher 5646 | -7/Waste | Crushed by Compactor (1 part destroyed, 2 dropped) 5652 | -7/Waste | Crushed by Compactor (1 part destroyed, 1 dropped) 5653 | -7/Waste | Spotted C-40 Crusher 5655 | -7/Waste | Spotted C-40 Crusher 5656 | -7/Waste | Released all parts (6) 5658 | -7/Waste | Spotted C-40 Crusher 5670 | -7/Waste | Warlord forces began an assault 5676 | -7/Waste | Allies destroyed C-40 Crusher 5679 | -7/Waste | Allies destroyed C-40 Crusher 5681 | -7/Waste | Allies destroyed C-40 Crusher 5683 | -7/Waste | Lost 3 parts (2n1u) 5690 | -7/Waste | Allies destroyed C-40 Crusher 5698 | -7/Waste | Spotted C-40 Crusher 5712 | -7/Waste | Allies destroyed C-40 Crusher 5713 | -7/Waste | Spotted C-40 Crusher 5760 | -7/Waste | Lost 8 allies 5782 | -7/Waste | Discovered new exit (range 11) 5832 | -7/Waste | Entered Factory 5832 | -7/Factory | Accompanied by 11 allies 5859 | -7/Factory | Identified exit to Garrison 5859 | -7/Factory | Entered Garrison 5859 | -7/Garrison | Accompanied by 11 allies 5925 | -7/Garrison | Lost 4 allies 5953 | -7/Garrison | Triggered checkpoint 5961 | -7/Garrison | Triggered checkpoint 6214 | -7/Garrison | Build established: Scavenger-Mutant 6235 | -7/Garrison | Triggered checkpoint 6261 | -7/Garrison | Triggered checkpoint 6332 | -7/Garrison | Discovered new exit (range 14) 6400 | -7/Garrison | Spotted B-75 Beast 6426 | -7/Garrison | Destroyed B-75 Beast 6855 | -7/Garrison | Triggered checkpoint 6908 | -7/Garrison | Discovered new exit (range 15) 6940 | -7/Garrison | Expanded RIF knowledge: Zone Cloak 7017 | -7/Garrison | Triggered checkpoint 7077 | -7/Garrison | Discovered new exit (range 9) 7087 | -7/Garrison | Triggered checkpoint 7100 | -7/Garrison | Found embedded Infiltrators 7230 | -7/Garrison | Phase Generator disabled 7350 | -7/Garrison | Entered Factory 7350 | -7/Factory | Accompanied by 2 allies 7750 | -7/Factory | First assault squad dispatched 7938 | -7/Factory | Cargo convoy interrupted 7969 | -7/Factory | Core integrity fell below 50% 7981 | -7/Factory | Core integrity fell below 20% 8002 | -7/Factory | System corruption reached 10% 8004 | -7/Factory | Destroyed by Y-54 Guardian with Gatling Laser Last Messages --------------- 07995_ Acquired Prototype Ballistic Gun. 07995_ Identified Enh. Coil Gun. 07996_ U-05 Engineer lays Concrete. 07998_ Y-54 Guardian heat spikes uncontrollably. 07998_ U-05 Engineer lays Concrete. 07999_ K-01 Serf collects debris. 07999_ Slug penetrates Y-54 Guardian. 08000_ U-05 Engineer lays Concrete. 08001_ Acquired Corrupted Enh. Coil Gun. 08001_ Integrated Corrupted Enh. Coil Gun (+5). 08001_ Rnf. Deuterium Engine destroyed. 08001_ U-05 Engineer lays Concrete. 08002_ Y-54 Guardian heat damages Lgt. Treads. 08002_ U-05 Engineer lays Concrete. 08003_ K-01 Serf collects debris. 08004_ CGUYMG Q|JQ1MPEIXVFKN9KZD|8 08004_ Y-54 Guardian heat damages Gatling Laser. 08004_ U-05 Engineer builds a Wall. 08004_ U-05 Engineer lays Concrete. [Achievement: Overachiever] Map ----- +----------------------------------------------------+ | ??????# """ """ #????????# """ """ #????????? | | ??????# """ """ !#? ??????#%""" """ /??????????? | | ??????# """ """ # ??# """ """ #????????? | | ??????# # #?# #????????? | | ??????# """ # #?# """ """? #????????? | | ??????# """ [= # #?# """ ""?????????????? | | ??????# """ # #?# """ ""?????????????? | | ??????# # #?# ??????????????? | | ??????# # #?# """ "??????????????? | | ??????+ # #?? "?? ???????????????? | | ??????# * # #?? "?? ???????????????? | | ??????####""""%!"#"# #?? ??? ???????????????? | | ?????###" !! " ; ????#???#???????????????? | | ?????# ;;;##+####?????????????????????? | | ?????# % +?????????????????????? | | ?????# k #?????????????????????? | | ?????#% |=% #?????????????????????? | | ?????# =!!*% #?????????????????????? | | ?????# | =%= #?????????????????????? | | ?????# ==%%= ##????????????????????? | | ?????# %! ##????????????????????? | | ???? ##"# #""""#### % #??#??????????????????? | | ???####??####### [ ??#r ##;####### #??????????? | | ???????????????# ?#m[% #??????????? | | ???????????????# " "" #u ! #??????????? | | ???????????????# "R"" #]]@[ #??????????? | | ???????????????# """ Y !! #??????????? | | ???????????????# *=]] [ #??????????? | | ???????????????####; |% u #?????????? | | ????????????????? % [ +?????????? | | ????????????????#### [% ??????????? | | ???????????????????# % ########## #??????????? | | ??????????????????? % #?????????????????????? | | ?????????????????? ; ##?????????????????????? | | ????????????????? % ####??????????????????????? | | ????????????????## ??????????????????????????? | | ?????????????????# ??????????????????????????? | | ?????????????????## #??????????????????????????? | | ??????????????????# ???????????????????????????? | | ??????????????????# ???????????????????????????? | | ???????????????????? ???????????????????????????? | | ?????????????????????????????????????????????????? | | ?????????????????????????????????????????????????? | | ?????????????????????????????????????????????????? | | ?????????????????????????????????????????????????? | | ?????????????????????????????????????????????????? | | ?????????????????????????????????????????????????? | | ?????????????????????????????????????????????????? | | ?????????????????????????????????????????????????? | | ?????????????????????????????????????????????????? | +----------------------------------------------------+ Best States ------------- Heat Dissipation 62 Energy Generation 18 Energy Capacity 290 Matter Stores 300 Matter Capacity 300 Sight Range 16 Terrain Scan Density 10 Armor Coverage 825 Resistance: TH 15 Utility Shielding 66 Evasion (%) 55 Recoil Reduction 3 Relay Coupler Types 1 Relay Coupler Value 22 Authchip Count 1 Item Schematics ----------------- None Robot Schematics ------------------ M-13 Machinist | -10/Materials | Hacked Fabricated ------------ Nothing Alien Tech Used ----------------- None Achievements -------------- Exterminator Overachiever Challenges ------------ None Game ------ Seed NeutronEnergyGreatsword Manual? 0 Play Time 00:57:16 Cumulative 87.4 hours Start 2024.11.13 @ 14:45:17 End 2024.11.13 @ 15:50:19 Sessions 1 Manual Loads 0 Difficulty Rogue Special Mode None Game No. 72 Rogue 54 Adventurer 16 Explorer 2 Win Type - Total 3 Types 3/0/0/0/0/0/0/0/0 Lore% 15 Gallery% 54 Achievement% 50 Wizard Run 0 Options --------- Layout 2 ASCII 0 Keyboard 0 Movement Numpad Keybinds 1 Fullscreen 1 Font 24/Terminus Map View 50x44 Zoom Use 0% Tactical HUD 1 Map Filters NONE Filters NONE Steam 1 RUN: 7be5e3ea-a118-4503-aca4-eb3ad3a71a2b